fUST/lending_fUST_20240823
["ID","MTS","AMOUNT","RATE_DAILY","PERIOD"]
[335613593,1724386242371,-500.0,0.00017363,2]
[335613594,1724386242380,-500.0,0.00017363,2]
[335613595,1724386242390,-517.09094903,0.00017363,2]
[335613596,1724386242399,-500.0,0.00017363,2]
[335613597,1724386242408,-596.89,0.00017363,2]
[335613598,1724386242417,-500.0,0.00017363,2]
[335613599,1724386242426,-500.0,0.00017363,2]
[335613600,1724386242435,-301.62571301,0.00017363,2]
[335613601,1724386242444,-500.0,0.00017363,2]
[335613602,1724386242453,-500.0,0.00017363,2]
[335613603,1724386242462,-500.0,0.00017363,2]
[335613604,1724386242471,-500.0,0.00017363,2]
[335613605,1724386242480,-500.0,0.00017363,2]
[335613606,1724386242489,-500.0,0.00017363,2]
[335613607,1724386242499,-500.0,0.00017363,2]
[335613608,1724386242509,-500.0,0.00017363,2]
[335613609,1724386242519,-89892.220305,0.00017364,2]
[335613610,1724386242528,-151.0,0.00017364,2]
[335613611,1724386242538,-151.0,0.00017364,2]
[335613612,1724386242547,-151.0,0.00017364,2]
[335613613,1724386242556,-151.0,0.00017364,2]
[335613614,1724386242565,-151.0,0.00017364,2]
[335613615,1724386242574,-151.0,0.00017364,2]
[335613616,1724386242584,-151.0,0.00017364,2]
[335613617,1724386242594,-151.0,0.00017364,2]
[335613618,1724386242604,-946.217613,0.00017364,2]
[335613619,1724386242614,-946.217613,0.00017364,2]
[335613620,1724386242624,-264.895956,0.00017364,2]
[335613621,1724386242634,-264.895956,0.00017364,2]
[335613622,1724386242643,-240.729938,0.00017364,2]
[335613623,1724386242653,-240.729938,0.00017364,2]
[335613624,1724386242662,-627.510663,0.00017364,2]
[335613625,1724386242672,-151.0,0.00017364,2]
[335613626,1724386242681,-627.510663,0.00017364,2]
[335613627,1724386242690,-151.0,0.00017364,2]
[335613628,1724386242699,-195.409826,0.00017364,2]
[335613629,1724386242709,-152.365004,0.00017364,2]
[335613630,1724386242718,-245.756549,0.00017364,2]
[335613631,1724386242727,-245.756549,0.00017364,2]
[335613632,1724386242736,-472.33165,0.00017364,2]
[335613633,1724386242747,-472.33165,0.00017364,2]
[335613634,1724386242756,-151.0,0.00017364,2]
[335613635,1724386242765,-776.268439,0.00017364,2]
[335613636,1724386242775,-776.268439,0.00017364,2]
[335613637,1724386242784,-785.713192,0.00017364,2]
[335613638,1724386242793,-785.713192,0.00017364,2]
[335613639,1724386242802,-151.0,0.00017364,2]
[335613640,1724386242811,-210.433316,0.00017364,2]
[335613641,1724386242821,-14657.98141414,0.00017365,9]
[335613642,1724386242830,-9244.08749644,0.00017365,2]
[335613658,1724386243354,-1907.57,0.00017353,2]
[335613659,1724386243364,-3548.4552914,0.00017365,2]
[335613660,1724386243650,-32153.56736466,0.00017365,2]
[335613661,1724386243659,-3266.62778993,0.00017372,9]
[335613662,1724386243669,-30743.66080339,0.00017372,2]
[335613694,1724386701468,154.96571518,0.00013971,2]
[335613695,1724386706050,154.88394954,0.00013971,2]
[335613697,1724386714924,862.64603536,0.00013971,2]
[335613698,1724386755369,218.7590501,0.00013971,2]
[335613699,1724386768953,1621.64150516,0.00013971,2]
[335613702,1724386925945,784.16353444,0.00013971,2]
[335613709,1724387141120,-417.06187277,0.00016934,2]
[335613710,1724387147098,-220.70931,0.00014247,2]
[335613711,1724387147124,-102.97982807,0.00016934,2]
[335613716,1724387242125,-366.15075023,0.00016968,2]
[335613717,1724387242149,-500.0,0.00016974,7]
[335613718,1724387242172,-500.0,0.00016974,7]
[335613719,1724387242196,-500.0,0.00016974,7]
[335613720,1724387242219,-500.0,0.00016974,7]
[335613721,1724387242241,-500.0,0.00016974,7]
[335613722,1724387242264,-500.0,0.00016974,7]
[335613723,1724387242290,-500.0,0.00016974,7]
[335613724,1724387242312,-500.0,0.00016974,7]
[335613725,1724387242334,-500.0,0.00016974,7]
[335613726,1724387242356,-500.0,0.00016974,7]
[335613727,1724387242378,-500.0,0.00016974,7]
[335613728,1724387242404,-500.0,0.00016974,7]
[335613729,1724387242428,-500.0,0.00016974,7]
[335613730,1724387242452,-500.0,0.00016974,7]
[335613731,1724387242478,-500.0,0.00016974,7]
[335613732,1724387242499,-500.0,0.00016974,7]
[335613733,1724387242522,-500.0,0.00016974,7]
[335613734,1724387242547,-500.0,0.00016974,7]
[335613735,1724387242569,-500.0,0.00016974,7]
[335613736,1724387242593,-500.0,0.00016974,7]
[335613737,1724387242618,-500.0,0.00016974,7]
[335613738,1724387242639,-500.0,0.00016974,7]
[335613739,1724387242662,-570.1,0.00016974,7]
[335613740,1724387242685,-500.0,0.00016974,7]
[335613741,1724387242709,-500.0,0.00016974,7]
[335613742,1724387242730,-500.0,0.00016974,7]
[335613743,1724387242752,-500.0,0.00016974,7]
[335613744,1724387242774,-500.0,0.00016974,7]
[335613745,1724387242798,-500.0,0.00016974,7]
[335613746,1724387242821,-500.0,0.00016974,7]
[335613747,1724387242848,-500.0,0.00016974,7]
[335613748,1724387242875,-84.05997668,0.00016974,7]
[335613749,1724387248101,-415.94002332,0.00016974,7]
[335613750,1724387248127,-500.0,0.00016974,7]
[335613751,1724387248148,-470.70712855,0.00016974,7]
[335613756,1724387345120,-724.27641772,0.00014245,2]
[335613757,1724387345141,-412.89428066,0.00014245,2]
[335613782,1724387432531,-29.29287145,0.00016974,7]
[335613783,1724387432548,-500.0,0.00016974,7]
[335613784,1724387432557,-500.0,0.00016974,7]
[335613785,1724387432567,-500.0,0.00016974,7]
[335613786,1724387432576,-500.0,0.00016974,7]
[335613787,1724387432585,-500.0,0.00016974,7]
[335613788,1724387432594,-500.0,0.00016974,7]
[335613789,1724387432603,-642.87,0.00016974,7]
[335613790,1724387432615,-500.0,0.00016974,7]
[335613791,1724387432627,-500.0,0.00016974,7]
[335613792,1724387432638,-500.0,0.00016974,7]
[335613793,1724387432649,-500.0,0.00016974,7]
[335613794,1724387432660,-500.0,0.00016974,7]
[335613795,1724387432671,-500.0,0.00016974,7]
[335613796,1724387432681,-500.0,0.00016974,7]
[335613797,1724387432692,-500.0,0.00016974,7]
[335613798,1724387432702,-500.0,0.00016974,7]
[335613799,1724387432712,-500.0,0.00016974,7]
[335613800,1724387432721,-5506.11285715,0.00016991,2]
[335613801,1724387432731,-1111.52616931,0.00017199,2]
[335613802,1724387432741,-1416.92887413,0.000172,2]
[335613803,1724387432752,-2000.0,0.00017252,2]
[335613804,1724387432763,-1505.30923845,0.00017261,2]
[335613805,1724387432774,-500.0,0.00017261,2]
[335613806,1724387432785,-500.0,0.00017261,2]
[335613807,1724387432795,-500.0,0.00017261,2]
[335613808,1724387432805,-937.43,0.00017261,2]
[335613809,1724387432817,-500.0,0.00017261,2]
[335613810,1724387432829,-500.0,0.00017261,2]
[335613811,1724387432840,-500.0,0.00017261,2]
[335613812,1724387432852,-3907.97,0.00017261,2]
[335613813,1724387432862,-525.74,0.00017261,2]
[335613814,1724387432871,-665.91,0.00017261,2]
[335613815,1724387432881,-591.97,0.00017261,2]
[335613816,1724387432892,-500.0,0.00017261,2]
[335613817,1724387432903,-2935.25,0.00017261,2]
[335613818,1724387432913,-500.0,0.00017261,2]
[335613819,1724387432923,-649.26,0.00017261,2]
[335613820,1724387432934,-500.0,0.00017261,2]
[335613821,1724387432945,-519.90266019,0.00017261,2]
[335613822,1724387432956,-16116.33602913,0.00017262,2]
[335613848,1724387438660,-500.0,0.00017261,2]
[335613850,1724387438669,-506.08401523,0.00017261,2]
[335613853,1724387438679,-503.3429822,0.00017261,2]
[335613854,1724387438688,-19124.05165936,0.00017262,2]
[335613856,1724387438696,-3126.14299731,0.000173,2]
[335613858,1724387438706,-153.0,0.000173,2]
[335613860,1724387438715,-154.5054193,0.000173,2]
[335613862,1724387438724,-153.0,0.000173,2]
[335613864,1724387438733,-33798.1126102,0.00017331,2]
[335613867,1724387438743,-500.0,0.0001734,2]
[335613869,1724387438752,-500.0,0.0001734,2]
[335613871,1724387438761,-694.02,0.0001734,2]
[335613874,1724387438782,-500.0,0.0001734,2]
[335613876,1724387438792,-2463.0,0.0001734,2]
[335613878,1724387438801,-1027.26,0.0001734,2]
[335613880,1724387438811,-3330.9,0.0001734,2]
[335613882,1724387438821,-500.0,0.0001734,2]
[335613884,1724387438830,-500.0,0.0001734,2]
[335613886,1724387438840,-503.27847493,0.0001734,2]
[335613888,1724387438851,-500.0,0.0001734,2]
[335613890,1724387438862,-500.0,0.0001734,2]
[335613892,1724387438872,-1584.72,0.0001734,2]
[335613894,1724387438882,-500.0,0.0001734,2]
[335613897,1724387438892,-500.0,0.0001734,2]
[335613899,1724387438902,-189.89981536,0.0001734,2]
[335613901,1724387438912,-1336.86,0.0001734,2]
[335613903,1724387438921,-550.78283292,0.0001734,2]
[335613905,1724387438935,-1209.16,0.0001734,2]
[335613907,1724387438945,-683.47,0.0001734,2]
[335613909,1724387438955,-514.59,0.0001734,2]
[335613911,1724387438964,-500.0,0.0001734,2]
[335613913,1724387438974,-500.0,0.0001734,2]
[335613915,1724387438983,-500.0,0.0001734,2]
[335613917,1724387438993,-500.0,0.0001734,2]
[335613919,1724387439002,-1313.46,0.0001734,2]
[335613921,1724387439012,-520.49623037,0.0001734,2]
[335613923,1724387439022,-1576.05,0.0001734,2]
[335613925,1724387439032,-571.30959726,0.0001734,2]
[335613927,1724387439047,-500.0,0.0001734,2]
[335613929,1724387439058,-520.95,0.0001734,2]
[335613931,1724387439067,-500.0,0.0001734,2]
[335613934,1724387439078,-500.0,0.0001734,2]
[335613936,1724387439089,-500.0,0.0001734,2]
[335613938,1724387439099,-500.0,0.0001734,2]
[335613940,1724387439109,-500.0,0.0001734,2]
[335613942,1724387439119,-1422.08,0.0001734,2]
[335613944,1724387439129,-500.0,0.0001734,2]
[335613946,1724387439139,-500.0,0.0001734,2]
[335613948,1724387439149,-890.76,0.0001734,2]
[335613950,1724387439159,-33798.1126102,0.00017341,2]
[335613952,1724387439170,-500.0,0.00017341,2]
[335613954,1724387439180,-500.0,0.00017341,2]
[335613957,1724387439190,-500.0,0.00017341,2]
[335613959,1724387439200,-500.0,0.00017341,2]
[335613961,1724387439210,-500.0,0.00017341,2]
[335613963,1724387439219,-1487.4,0.00017341,2]
[335613965,1724387439231,-573.39,0.00017341,2]
[335613967,1724387439240,-500.0,0.00017341,2]
[335613969,1724387439250,-581.82,0.00017341,2]
[335613971,1724387439261,-805.02,0.00017341,2]
[335613973,1724387439272,-500.0,0.00017341,2]
[335613976,1724387439283,-883.39,0.00017341,2]
[335613978,1724387439293,-545.97,0.00017341,2]
[335613980,1724387439303,-681.19,0.00017341,2]
[335613982,1724387439312,-500.0,0.00017341,2]
[335613984,1724387439322,-500.0,0.00017341,2]
[335613986,1724387439331,-500.0,0.00017341,2]
[335613988,1724387439342,-500.0,0.00017341,2]
[335613990,1724387439352,-500.0,0.00017341,2]
[335613992,1724387439363,-745.89,0.00017341,2]
[335613994,1724387439373,-1000.0,0.00017341,2]
[335613996,1724387439384,-500.0,0.00017341,2]
[335613999,1724387439394,-537.34576519,0.00017341,2]
[335614000,1724387439408,-500.0,0.00017341,2]
[335614002,1724387439418,-500.0,0.00017341,2]
[335614003,1724387439427,-500.0,0.00017341,2]
[335614004,1724387439437,-500.0,0.00017341,2]
[335614005,1724387439447,-500.0,0.00017341,2]
[335614006,1724387439459,-500.0,0.00017341,2]
[335614007,1724387439469,-500.0,0.00017341,2]
[335614008,1724387439478,-500.0,0.00017341,2]
[335614009,1724387439488,-500.0,0.00017341,2]
[335614010,1724387439498,-500.0,0.00017341,2]
[335614011,1724387439508,-500.0,0.00017341,2]
[335614012,1724387439517,-500.0,0.00017341,2]
[335614013,1724387439528,-500.0,0.00017341,2]
[335614014,1724387439539,-537.35,0.00017341,2]
[335614015,1724387439554,-500.0,0.00017341,2]
[335614016,1724387439563,-500.0,0.00017341,2]
[335614017,1724387439573,-500.0,0.00017341,2]
[335614018,1724387439583,-500.0,0.00017341,2]
[335614019,1724387439594,-500.0,0.00017341,2]
[335614020,1724387439603,-500.0,0.00017341,2]
[335614021,1724387439613,-500.0,0.00017341,2]
[335614022,1724387439624,-500.0,0.00017341,2]
[335614023,1724387439634,-712.48,0.00017341,2]
[335614024,1724387439646,-3519.6,0.00017341,2]
[335614025,1724387439657,-2022.03,0.00017341,2]
[335614026,1724387439668,-500.0,0.00017341,2]
[335614027,1724387439680,-5269.37,0.00017341,2]
[335614028,1724387439690,-500.0,0.00017341,2]
[335614029,1724387439700,-500.0,0.00017341,2]
[335614030,1724387439710,-500.0,0.00017341,2]
[335614031,1724387439719,-500.0,0.00017341,2]
[335614032,1724387439732,-541.64,0.00017341,2]
[335614033,1724387439743,-500.0,0.00017341,2]
[335614034,1724387439753,-500.0,0.00017341,2]
[335614035,1724387439763,-774.61,0.00017341,2]
[335614036,1724387439773,-500.0,0.00017341,2]
[335614037,1724387439784,-500.0,0.00017341,2]
[335614038,1724387439794,-500.0,0.00017341,2]
[335614039,1724387439805,-500.0,0.00017341,2]
[335614040,1724387439815,-500.0,0.00017341,2]
[335614041,1724387439826,-1450.15,0.00017341,2]
[335614042,1724387439837,-500.0,0.00017341,2]
[335614043,1724387439848,-500.0,0.00017341,2]
[335614044,1724387439859,-500.0,0.00017341,2]
[335614045,1724387439871,-1779.82,0.00017341,2]
[335614046,1724387439884,-500.0,0.00017341,2]
[335614047,1724387439894,-135192.450441,0.00017342,2]
[335614048,1724387439906,-20399.25875911,0.00017343,2]
[335614050,1724387441306,-500.0,0.00017261,2]
[335614051,1724387441319,-2000.85,0.00017261,2]
[335614052,1724387441329,-371.47053976,0.0001734,2]
[335614053,1724387443587,-500.0,0.00017261,2]
[335614054,1724387443598,-128.52946024,0.0001734,2]
[335614055,1724387443608,-13398.85385109,0.00017343,2]
[335614056,1724387443617,-500.0,0.00017351,2]
[335614057,1724387443627,-500.0,0.00017351,2]
[335614058,1724387443636,-1931.07,0.00017351,2]
[335614059,1724387443646,-500.0,0.00017351,2]
[335614060,1724387443656,-398.6534244,0.00017351,2]
[335614061,1724387443666,-500.0,0.00017351,2]
[335614062,1724387443676,-500.0,0.00017351,2]
[335614063,1724387443685,-500.0,0.00017351,2]
[335614064,1724387443695,-500.0,0.00017351,2]
[335614065,1724387443704,-500.0,0.00017351,2]
[335614066,1724387443714,-500.0,0.00017351,2]
[335614067,1724387443724,-500.0,0.00017351,2]
[335614068,1724387443734,-501.2,0.00017351,2]
[335614069,1724387443744,-500.0,0.00017351,2]
[335614070,1724387443753,-500.0,0.00017351,2]
[335614071,1724387443763,-500.0,0.00017351,2]
[335614072,1724387443773,-500.0,0.00017351,2]
[335614073,1724387443784,-500.0,0.00017351,2]
[335614074,1724387443794,-562.90210878,0.00017351,2]
[335614075,1724387443804,-500.0,0.00017351,2]
[335614076,1724387443814,-500.0,0.00017351,2]
[335614077,1724387443824,-500.0,0.00017351,2]
[335614078,1724387443834,-500.0,0.00017351,2]
[335614079,1724387443844,-500.0,0.00017351,2]
[335614080,1724387443854,-500.0,0.00017351,2]
[335614081,1724387443865,-500.0,0.00017351,2]
[335614082,1724387443874,-527.31,0.00017351,2]
[335614083,1724387443885,-500.0,0.00017351,2]
[335614084,1724387443895,-532.15,0.00017351,2]
[335614085,1724387443905,-500.0,0.00017351,2]
[335614086,1724387443915,-921.27,0.00017351,2]
[335614087,1724387443925,-563.84,0.00017351,2]
[335614088,1724387443935,-500.0,0.00017351,2]
[335614089,1724387443944,-500.0,0.00017351,2]
[335614090,1724387443955,-500.0,0.00017351,2]
[335614091,1724387443965,-500.0,0.00017351,2]
[335614092,1724387443975,-44.50974881,0.00017351,2]
[335614107,1724387736533,500.0,0.00013559,2]
[335614110,1724387757657,500.0,0.00012881,2]
[335614112,1724387778850,500.0,0.00012237,2]
[335614114,1724387830152,154.79103211,0.00012881,2]
[335614136,1724387896606,245.90664773,0.00013971,2]
[335614139,1724388097959,155.01465691,0.00013971,2]
[335614149,1724388335147,-183.4219694,0.00014247,2]
[335614150,1724388335515,-209.673844,0.00014247,2]
[335614151,1724388335565,-172.64239911,0.00014273,2]
[335614152,1724388359213,-327.35760089,0.00014273,2]
[335614153,1724388359236,-495.31419877,0.00014947,2]
[335614155,1724388434115,-2504.68580123,0.00014947,2]
[335614156,1724388434136,-500.0,0.00015024,2]
[335614157,1724388434156,-500.0,0.00015815,2]
[335614158,1724388434176,-500.0,0.00016647,2]
[335614159,1724388434198,-153.0,0.000167,2]
[335614160,1724388434221,-153.0,0.000167,2]
[335614161,1724388434242,-153.0,0.000167,2]
[335614162,1724388434267,-153.0,0.000167,2]
[335614163,1724388434288,-153.0,0.00016795,2]
[335614164,1724388434308,-153.0,0.00016795,2]
[335614165,1724388434329,-153.0,0.000168,2]
[335614166,1724388434349,-153.0,0.000168,2]
[335614167,1724388434369,-1321.26428452,0.00016932,2]
[335614168,1724388434390,-153.0,0.00016978,2]
[335614169,1724388434411,-1759.79182463,0.0001708,2]
[335614170,1724388437135,-153.0,0.000168,2]
[335614171,1724388437156,-3863.4723699,0.0001708,2]
[335614172,1724388437179,-1239.81276482,0.0001715,2]
[335614173,1724388437201,-1354.77831456,0.0001723,2]
[335614174,1724388437222,-506.08401523,0.00017241,2]
[335614175,1724388437243,-503.3429822,0.00017241,2]
[335614176,1724388437265,-500.0,0.00017241,2]
[335614177,1724388437286,-500.0,0.00017241,2]
[335614178,1724388437307,-500.0,0.00017241,2]
[335614179,1724388437328,-500.0,0.00017241,2]
[335614180,1724388437350,-500.0,0.00017241,2]
[335614181,1724388437373,-500.0,0.00017241,2]
[335614182,1724388437393,-719.8,0.00017241,2]
[335614183,1724388437415,-500.0,0.00017241,2]
[335614184,1724388437435,-500.0,0.00017241,2]
[335614185,1724388437457,-500.0,0.00017241,2]
[335614186,1724388437479,-500.0,0.00017241,2]
[335614187,1724388437500,-500.0,0.00017241,2]
[335614188,1724388437521,-223.42168171,0.00017241,2]
[335614189,1724388437541,-500.0,0.00017241,2]
[335614190,1724388437561,-500.0,0.00017241,2]
[335614191,1724388437581,-500.0,0.00017241,2]
[335614192,1724388437602,-500.0,0.00017241,2]
[335614193,1724388437623,-200.0,0.00017241,2]
[335614194,1724388437644,-500.0,0.00017241,2]
[335614195,1724388437664,-500.0,0.00017241,2]
[335614196,1724388437685,-500.0,0.00017241,2]
[335614197,1724388437708,-1426.54130359,0.00017241,2]
[335614205,1724388606835,183.42196264,0.00014519,2]
[335614206,1724388606858,146.88622535,0.00014519,2]
[335614214,1724388632424,-475.41938185,0.0001724,2]
[335614253,1724388637695,-27.1035684,0.0001724,2]
[335614255,1724388637706,-500.0,0.0001724,2]
[335614258,1724388637717,-35334.4639132,0.0001724,2]
[335614260,1724388637727,-199.88572622,0.00017241,2]
[335614262,1724388637737,-500.0,0.00017241,2]
[335614264,1724388637749,-500.0,0.00017241,2]
[335614266,1724388637760,-500.0,0.00017241,2]
[335614268,1724388637771,-500.0,0.00017241,2]
[335614271,1724388637780,-500.0,0.00017241,2]
[335614273,1724388637790,-500.0,0.00017241,2]
[335614275,1724388637799,-500.0,0.00017241,2]
[335614277,1724388637809,-500.0,0.00017241,2]
[335614279,1724388637818,-500.0,0.00017241,2]
[335614281,1724388637830,-500.0,0.00017241,2]
[335614283,1724388637843,-753.47,0.00017241,2]
[335614286,1724388637858,-500.0,0.00017241,2]
[335614288,1724388637868,-500.0,0.00017241,2]
[335614290,1724388637878,-500.0,0.00017241,2]
[335614292,1724388637888,-500.0,0.00017241,2]
[335614294,1724388637898,-884.06,0.00017241,2]
[335614296,1724388637909,-500.0,0.00017241,2]
[335614299,1724388637918,-500.0,0.00017241,2]
[335614302,1724388637929,-500.0,0.00017241,2]
[335614305,1724388637942,-500.0,0.00017241,2]
[335614331,1724388638173,-500.0,0.00017241,2]
[335614333,1724388638185,-348.48489803,0.00017241,2]
[335614336,1724388638196,-1210.85,0.00017241,2]
[335614338,1724388638207,-500.0,0.00017241,2]
[335614340,1724388638218,-500.0,0.00017241,2]
[335614342,1724388638228,-500.0,0.00017241,2]
[335614344,1724388638241,-500.0,0.00017241,2]
[335614347,1724388638252,-500.0,0.00017241,2]
[335614348,1724388638262,-500.0,0.00017241,2]
[335614350,1724388638271,-500.0,0.00017241,2]
[335614353,1724388638282,-500.0,0.00017241,2]
[335614355,1724388638292,-500.0,0.00017241,2]
[335614357,1724388638303,-500.0,0.00017241,2]
[335614359,1724388638314,-500.0,0.00017241,2]
[335614361,1724388638325,-500.0,0.00017241,2]
[335614363,1724388638336,-254.44397614,0.00017241,2]
[335614365,1724388638346,-500.0,0.00017241,2]
[335614368,1724388638356,-500.0,0.00017241,2]
[335614370,1724388638365,-500.0,0.00017241,2]
[335614372,1724388638376,-500.0,0.00017241,2]
[335614374,1724388638386,-686.94,0.00017241,2]
[335614376,1724388638396,-500.0,0.00017241,2]
[335614378,1724388638406,-500.0,0.00017241,2]
[335614380,1724388638416,-500.0,0.00017241,2]
[335614382,1724388638425,-500.0,0.00017241,2]
[335614384,1724388638434,-500.0,0.00017241,2]
[335614386,1724388638443,-500.0,0.00017241,2]
[335614388,1724388638453,-658.57,0.00017241,2]
[335614390,1724388638463,-500.0,0.00017241,2]
[335614392,1724388638472,-500.0,0.00017241,2]
[335614394,1724388638481,-638.16,0.00017241,2]
[335614396,1724388638491,-3745.14,0.00017241,2]
[335614398,1724388638501,-500.0,0.00017241,2]
[335614400,1724388638510,-500.0,0.00017241,2]
[335614402,1724388638519,-503.84,0.00017241,2]
[335614404,1724388638529,-305.67273561,0.00017241,2]
[335614406,1724388638541,-194.32726439,0.00017241,2]
[335614408,1724388638550,-500.0,0.00017241,2]
[335614410,1724388638559,-500.0,0.00017241,2]
[335614412,1724388638570,-567.31,0.00017241,2]
[335614414,1724388638580,-500.0,0.00017241,2]
[335614416,1724388638589,-500.0,0.00017241,2]
[335614418,1724388638598,-500.0,0.00017241,2]
[335614420,1724388638607,-500.0,0.00017241,2]
[335614422,1724388638618,-500.0,0.00017241,2]
[335614424,1724388638627,-1917.48,0.00017241,2]
[335614426,1724388638636,-2812.95,0.00017241,2]
[335614428,1724388638646,-500.0,0.00017241,2]
[335614430,1724388638655,-500.0,0.00017241,2]
[335614432,1724388638665,-500.0,0.00017241,2]
[335614434,1724388638674,-500.0,0.00017241,2]
[335614436,1724388638683,-500.0,0.00017241,2]
[335614438,1724388638692,-500.0,0.00017241,2]
[335614440,1724388638701,-500.0,0.00017241,2]
[335614442,1724388638711,-550.78283292,0.00017249,2]
[335614444,1724388638720,-500.0,0.0001725,2]
[335614447,1724388638730,-500.0,0.0001725,2]
[335614449,1724388638740,-2015.03,0.0001725,2]
[335614451,1724388638749,-500.0,0.0001725,2]
[335614453,1724388638759,-500.0,0.0001725,2]
[335614455,1724388638768,-500.0,0.0001725,2]
[335614456,1724388638777,-398.6534244,0.0001725,2]
[335614459,1724388638786,-500.0,0.0001725,2]
[335614460,1724388638795,-500.0,0.0001725,2]
[335614462,1724388638804,-500.0,0.0001725,2]
[335614465,1724388638814,-500.0,0.0001725,2]
[335614467,1724388638823,-500.0,0.0001725,2]
[335614469,1724388638832,-500.0,0.0001725,2]
[335614471,1724388638842,-500.0,0.0001725,2]
[335614473,1724388638854,-500.0,0.0001725,2]
[335614475,1724388638865,-500.0,0.0001725,2]
[335614477,1724388638874,-501.2,0.0001725,2]
[335614479,1724388638885,-1487.4,0.0001725,2]
[335614481,1724388638895,-500.0,0.0001725,2]
[335614483,1724388638905,-500.0,0.0001725,2]
[335614485,1724388638916,-500.0,0.0001725,2]
[335614487,1724388638929,-573.39,0.0001725,2]
[335614489,1724388638939,-500.0,0.0001725,2]
[335614491,1724388638950,-500.0,0.0001725,2]
[335614494,1724388638962,-500.0,0.0001725,2]
[335614496,1724388638973,-581.82,0.0001725,2]
[335614498,1724388638985,-562.90210878,0.0001725,2]
[335614500,1724388638995,-500.0,0.0001725,2]
[335614502,1724388639005,-805.02,0.0001725,2]
[335614504,1724388639015,-500.0,0.0001725,2]
[335614506,1724388639025,-500.0,0.0001725,2]
[335614509,1724388639034,-500.0,0.0001725,2]
[335614511,1724388639043,-530.64,0.0001725,2]
[335614513,1724388639053,-500.0,0.0001725,2]
[335614514,1724388639062,-545.97,0.0001725,2]
[335614516,1724388639071,-500.0,0.0001725,2]
[335614519,1724388639081,-681.19,0.0001725,2]
[335614521,1724388639090,-500.0,0.0001725,2]
[335614523,1724388639100,-500.0,0.0001725,2]
[335614525,1724388639109,-500.0,0.0001725,2]
[335614527,1724388639120,-527.31,0.0001725,2]
[335614529,1724388639130,-500.0,0.0001725,2]
[335614531,1724388639140,-500.0,0.0001725,2]
[335614533,1724388639150,-532.15,0.0001725,2]
[335614535,1724388639159,-500.0,0.0001725,2]
[335614537,1724388639169,-500.0,0.0001725,2]
[335614539,1724388639178,-500.0,0.0001725,2]
[335614541,1724388639188,-500.0,0.0001725,2]
[335614543,1724388639197,-500.0,0.0001725,2]
[335614545,1724388639206,-500.0,0.0001725,2]
[335614547,1724388639216,-921.27,0.0001725,2]
[335614548,1724388639225,-500.0,0.0001725,2]
[335614549,1724388639235,-563.84,0.0001725,2]
[335614550,1724388639245,-1000.0,0.0001725,2]
[335614551,1724388639254,-500.0,0.0001725,2]
[335614552,1724388639264,-537.34576519,0.0001725,2]
[335614553,1724388639274,-500.0,0.0001725,2]